fUST/lending_fUST_20240901
["ID","MTS","AMOUNT","RATE_DAILY","PERIOD"]
[336823309,1725192577540,-550.01,0.00026094,2]
[336823310,1725192577567,-500.0,0.00026094,2]
[336823311,1725192577588,-594.2,0.00026094,2]
[336823312,1725192577609,-664.69,0.00026094,2]
[336823313,1725192577631,-509.33887022,0.00026094,2]
[336823314,1725192577654,-500.0,0.00026094,2]
[336823315,1725192577674,-500.0,0.00026094,2]
[336823316,1725192577695,-500.0,0.00026095,2]
[336823317,1725192577718,-500.0,0.00026095,2]
[336823318,1725192577743,-509.27926709,0.00026095,2]
[336823319,1725192577764,-500.0,0.00026095,2]
[336823320,1725192577788,-789.57,0.00026095,2]
[336823321,1725192577809,-500.0,0.00026095,2]
[336823322,1725192577830,-500.0,0.00026095,2]
[336823323,1725192577852,-8078.33957086,0.00026355,3]
[336823324,1725192577876,-8078.33957086,0.00026356,3]
[336823325,1725192577898,-8078.33957086,0.00026357,3]
[336823326,1725192577920,-2132.33,0.00026364,2]
[336823327,1725192577943,-500.0,0.00026364,2]
[336823328,1725192577965,-500.0,0.00026364,2]
[336823329,1725192577987,-500.0,0.00026364,2]
[336823330,1725192578009,-2191.27,0.00026365,2]
[336823331,1725192578031,-1692.33,0.00026365,2]
[336823332,1725192578053,-1383.39,0.00026365,2]
[336823333,1725192578075,-514.75,0.00026365,2]
[336823334,1725192578101,-500.0,0.00026365,2]
[336823335,1725192578121,-649.86,0.00026365,2]
[336823336,1725192578144,-2082.74,0.00026365,2]
[336823337,1725192578171,-198.23194114,0.00026365,2]
[336823338,1725192578193,-12586.71,0.00026365,2]
[336823339,1725192578216,-2887.41,0.00026365,2]
[336823340,1725192578239,-689.77,0.00026365,2]
[336823341,1725192578262,-3325.33,0.00026365,2]
[336823342,1725192578286,-1584.26,0.00026365,2]
[336823343,1725192578307,-500.0,0.00026365,2]
[336823344,1725192578330,-604.73,0.00026365,2]
[336823345,1725192578485,-1027.88,0.00026365,2]
[336823346,1725192578515,-1132.07,0.00026365,2]
[336823347,1725192578537,-509.52,0.00026365,2]
[336823348,1725192578562,-500.0,0.00026365,2]
[336823349,1725192578584,-500.0,0.00026365,2]
[336823350,1725192578607,-500.0,0.00026365,2]
[336823351,1725192578628,-644.19850356,0.00026366,2]
[336823352,1725192578651,-500.0,0.00026366,2]
[336823353,1725192578672,-213.39442672,0.00026366,2]
[336823354,1725192588330,1000.0,0.00025,120]
[336823379,1725192633334,-470.7320341,0.00024064,2]
[336823380,1725192633344,-465.28660171,0.00025267,2]
[336823381,1725192633354,-896.00619124,0.00025268,2]
[336823386,1725192642736,-697.91380876,0.00025268,2]
[336823387,1725192642747,-540.03,0.00025268,2]
[336823388,1725192642756,-500.0,0.00025268,2]
[336823389,1725192642765,-300.0,0.00025268,2]
[336823390,1725192642775,-1734.75,0.00025268,2]
[336823391,1725192642785,-500.0,0.00025268,2]
[336823392,1725192642795,-575.6,0.00025268,2]
[336823393,1725192642806,-1521.75,0.00025268,2]
[336823394,1725192642817,-782.07,0.00025268,2]
[336823395,1725192642827,-500.0,0.00025268,2]
[336823396,1725192642839,-526.66130138,0.00025269,2]
[336823397,1725192642848,-1950.43,0.00025269,2]
[336823398,1725192642858,-500.0,0.00025269,2]
[336823399,1725192642868,-936.19,0.00025269,2]
[336823400,1725192642878,-500.0,0.00025269,2]
[336823401,1725192642889,-544.81,0.00025269,2]
[336823402,1725192642898,-500.0,0.00025269,2]
[336823403,1725192642908,-500.0,0.00025269,2]
[336823404,1725192642917,-500.0,0.00025269,2]
[336823405,1725192642927,-500.0,0.00025269,2]
[336823406,1725192642936,-946.89,0.00025269,2]
[336823407,1725192642946,-500.0,0.00025269,2]
[336823408,1725192642956,-500.0,0.0002527,2]
[336823409,1725192642965,-500.0,0.0002527,2]
[336823411,1725192642975,-500.0,0.0002527,2]
[336823413,1725192642984,-500.0,0.0002527,2]
[336823415,1725192642994,-500.0,0.0002527,2]
[336823417,1725192643005,-541.79,0.0002527,2]
[336823419,1725192643015,-500.0,0.0002527,2]
[336823421,1725192643025,-500.0,0.0002527,2]
[336823423,1725192643035,-500.0,0.0002527,2]
[336823425,1725192643046,-500.0,0.0002527,2]
[336823427,1725192643055,-532.06,0.0002527,2]
[336823429,1725192643064,-318.20969774,0.0002527,2]
[336823431,1725192643076,-264.55030226,0.0002527,2]
[336823432,1725192643086,-500.0,0.0002527,2]
[336823433,1725192643096,-500.0,0.0002527,2]
[336823434,1725192643105,-500.0,0.0002527,2]
[336823435,1725192643114,-500.0,0.0002527,2]
[336823436,1725192643125,-500.0,0.0002527,2]
[336823437,1725192643135,-500.0,0.0002527,2]
[336823438,1725192643144,-500.0,0.0002527,2]
[336823439,1725192643154,-557.59,0.0002527,2]
[336823440,1725192643163,-684.32,0.0002527,2]
[336823441,1725192643173,-579.82,0.0002527,2]
[336823442,1725192643183,-500.0,0.00025272,2]
[336823443,1725192643192,-500.0,0.00025534,2]
[336823445,1725192643202,-1593.92,0.00025542,2]
[336823447,1725192643211,-500.0,0.00025542,2]
[336823448,1725192643220,-1734.75,0.00025542,2]
[336823449,1725192643229,-1521.75,0.00025542,2]
[336823450,1725192643239,-782.07,0.00025542,2]
[336823451,1725192643249,-500.0,0.00025542,2]
[336823452,1725192643259,-1950.43,0.00025543,2]
[336823453,1725192643268,-500.0,0.00025543,2]
[336823454,1725192643277,-936.19,0.00025543,2]
[336823455,1725192643287,-500.0,0.00025543,2]
[336823456,1725192643296,-544.81,0.00025543,2]
[336823457,1725192643306,-500.0,0.00025543,2]
[336823458,1725192643315,-500.0,0.00025543,2]
[336823459,1725192643325,-500.0,0.00025543,2]
[336823460,1725192643335,-500.0,0.00025543,2]
[336823461,1725192643345,-946.89,0.00025543,2]
[336823462,1725192643355,-500.0,0.00025543,2]
[336823463,1725192643365,-500.0,0.00025544,2]
[336823464,1725192643374,-500.0,0.00025544,2]
[336823465,1725192643384,-541.79,0.00025544,2]
[336823466,1725192643393,-500.0,0.00025544,2]
[336823467,1725192643406,-500.0,0.00025544,2]
[336823468,1725192643418,-164.05,0.00025544,2]
[336823469,1725192643428,-532.06,0.00025544,2]
[336823470,1725192643438,-582.76,0.00025544,2]
[336823471,1725192643449,-500.0,0.00025544,2]
[336823472,1725192643459,-500.0,0.00025544,2]
[336823473,1725192643469,-500.0,0.00025544,2]
[336823474,1725192643478,-557.59,0.00025544,2]
[336823475,1725192643488,-684.32,0.00025544,2]
[336823476,1725192643499,-500.0,0.00025545,2]
[336823477,1725192643510,-616.44956672,0.00025546,2]
[336823478,1725192643521,-500.0,0.00025546,2]
[336823479,1725192643531,-1217.20077479,0.0002572,2]
[336823480,1725192643542,-500.0,0.00025816,2]
[336823481,1725192643551,-1593.92,0.00025816,2]
[336823482,1725192643562,-500.0,0.00025816,2]
[336823483,1725192643575,-1734.75,0.00025816,2]
[336823484,1725192643584,-500.0,0.00025816,2]
[336823485,1725192643594,-1521.75,0.00025816,2]
[336823486,1725192643603,-782.07,0.00025816,2]
[336823487,1725192643613,-500.0,0.00025816,2]
[336823488,1725192643623,-1950.43,0.00025817,2]
[336823489,1725192643632,-500.0,0.00025817,2]
[336823490,1725192643643,-936.19,0.00025817,2]
[336823491,1725192643653,-500.0,0.00025817,2]
[336823492,1725192643664,-544.81,0.00025817,2]
[336823493,1725192643673,-395.8,0.00025817,2]
[336823494,1725192643682,-500.0,0.00025817,2]
[336823495,1725192643692,-500.0,0.00025817,2]
[336823496,1725192643702,-946.89,0.00025817,2]
[336823497,1725192643711,-500.0,0.00025817,2]
[336823498,1725192643722,-500.0,0.00025818,2]
[336823499,1725192643732,-500.0,0.00025818,2]
[336823500,1725192643742,-541.79,0.00025818,2]
[336823501,1725192643751,-500.0,0.00025818,2]
[336823502,1725192643761,-500.0,0.00025818,2]
[336823503,1725192643770,-532.06,0.00025818,2]
[336823504,1725192643779,-582.76,0.00025818,2]
[336823505,1725192643788,-500.0,0.00025818,2]
[336823506,1725192643797,-557.59,0.00025818,2]
[336823507,1725192643807,-684.32,0.00025818,2]
[336823508,1725192643816,-500.0,0.00025873,2]
[336823509,1725192643826,-500.0,0.0002609,2]
[336823510,1725192643835,-1593.92,0.0002609,2]
[336823511,1725192643845,-500.0,0.0002609,2]
[336823512,1725192643854,-1734.75,0.0002609,2]
[336823513,1725192643864,-1521.75,0.0002609,2]
[336823514,1725192643874,-782.07,0.0002609,2]
[336823515,1725192643883,-500.0,0.0002609,2]
[336823516,1725192643894,-1950.43,0.00026091,2]
[336823517,1725192643904,-500.0,0.00026091,2]
[336823518,1725192643914,-936.19,0.00026091,2]
[336823519,1725192643924,-500.0,0.00026091,2]
[336823520,1725192643934,-544.81,0.00026091,2]
[336823521,1725192643944,-500.0,0.00026091,2]
[336823522,1725192643954,-500.0,0.00026091,2]
[336823523,1725192643963,-946.89,0.00026091,2]
[336823524,1725192643972,-500.0,0.00026091,2]
[336823525,1725192643982,-500.0,0.00026092,2]
[336823526,1725192643991,-500.0,0.00026092,2]
[336823527,1725192644000,-541.79,0.00026092,2]
[336823528,1725192644010,-500.0,0.00026092,2]
[336823529,1725192644019,-500.0,0.00026092,2]
[336823530,1725192644028,-532.06,0.00026092,2]
[336823531,1725192644037,-582.76,0.00026092,2]
[336823532,1725192644047,-500.0,0.00026092,2]
[336823533,1725192644056,-557.59,0.00026092,2]
[336823534,1725192644066,-684.32,0.00026092,2]
[336823535,1725192644075,-11412.44738926,0.00026357,11]
[336823536,1725192644085,-500.0,0.00026364,2]
[336823537,1725192644095,-1593.92,0.00026364,2]
[336823538,1725192644105,-500.0,0.00026364,2]
[336823539,1725192644117,-1734.75,0.00026364,2]
[336823540,1725192644127,-1521.75,0.00026364,2]
[336823541,1725192644139,-782.07,0.00026364,2]
[336823542,1725192644150,-500.0,0.00026364,2]
[336823543,1725192644160,-1950.43,0.00026365,2]
[336823544,1725192644169,-500.0,0.00026365,2]
[336823545,1725192644179,-936.19,0.00026365,2]
[336823546,1725192644189,-500.0,0.00026365,2]
[336823547,1725192644198,-544.81,0.00026365,2]
[336823548,1725192644208,-500.0,0.00026365,2]
[336823549,1725192644217,-500.0,0.00026365,2]
[336823550,1725192644226,-946.89,0.00026365,2]
[336823551,1725192644235,-500.0,0.00026365,2]
[336823552,1725192644245,-768.43557328,0.00026366,2]
[336823553,1725192644254,-200.50932729,0.00026366,2]
[336823554,1725192644263,-500.0,0.00026366,2]
[336823555,1725192644272,-550.78,0.00026366,2]
[336823556,1725192644282,-500.0,0.00026366,2]
[336823557,1725192644291,-740.94,0.00026366,2]
[336823558,1725192644300,-500.0,0.00026366,2]
[336823559,1725192644309,-500.0,0.00026366,2]
[336823560,1725192644318,-885.34,0.00026366,2]
[336823561,1725192644327,-500.0,0.00026366,2]
[336823562,1725192644336,-500.0,0.00026366,2]
[336823563,1725192644345,-658.94,0.00026366,2]
[336823564,1725192644355,-500.0,0.00026366,2]
[336823565,1725192644364,-500.0,0.00026366,2]
[336823566,1725192644373,-570.52,0.00026366,2]
[336823567,1725192644382,-502.06,0.00026366,2]
[336823568,1725192644391,-500.0,0.00026366,2]
[336823569,1725192644400,-1340.91,0.00026366,2]
[336823570,1725192644409,-500.0,0.00026366,2]
[336823571,1725192644418,-500.0,0.00026366,2]
[336823572,1725192644427,-3161.41,0.00026366,2]
[336823573,1725192644436,-500.0,0.00026366,2]
[336823574,1725192644445,-500.0,0.00026366,2]
[336823575,1725192644455,-500.0,0.00026366,2]
[336823576,1725192644465,-526.73,0.00026366,2]
[336823577,1725192644474,-500.0,0.00026366,2]
[336823578,1725192644483,-1089.79,0.00026366,2]
[336823579,1725192644492,-500.0,0.00026366,2]
[336823580,1725192644502,-590.52,0.00026366,2]
[336823581,1725192644511,-500.0,0.00026366,2]
[336823582,1725192644520,-588.48,0.00026366,2]
[336823583,1725192644530,-1007.91,0.00026366,2]
[336823584,1725192644542,-1497.44,0.00026366,2]
[336823585,1725192644554,-500.0,0.00026366,2]
[336823586,1725192644566,-2694.9,0.00026366,2]
[336823587,1725192644580,-6376.52,0.00026366,2]
[336823588,1725192644592,-500.0,0.00026366,2]
[336823589,1725192644601,-574.38,0.00026366,2]
[336823590,1725192644610,-559.85,0.00026366,2]
[336823591,1725192644620,-1097.2,0.00026366,2]
[336823592,1725192644629,-500.0,0.00026366,2]
[336823593,1725192644639,-500.0,0.00026366,2]
[336823594,1725192644648,-541.79,0.00026366,2]
[336823595,1725192644660,-500.0,0.00026366,2]
[336823596,1725192644670,-500.0,0.00026366,2]
[336823597,1725192644679,-532.06,0.00026366,2]
[336823598,1725192644688,-582.76,0.00026366,2]
[336823599,1725192644697,-500.0,0.00026366,2]
[336823600,1725192644706,-557.59,0.00026366,2]
[336823601,1725192644717,-684.32,0.00026366,2]
[336823602,1725192644726,-500.0,0.00026367,2]
[336823603,1725192644735,-500.0,0.00026367,2]
[336823604,1725192644744,-500.0,0.00026367,2]
[336823605,1725192644754,-622.73,0.00026367,2]
[336823606,1725192644763,-742.03,0.00026367,2]
[336823607,1725192644773,-500.0,0.00026367,2]
[336823608,1725192644782,-500.0,0.00026367,2]
[336823609,1725192644791,-443.53926504,0.00026367,2]
[336823610,1725192644801,-500.0,0.00026367,2]
[336823611,1725192644810,-500.0,0.00026367,2]
[336823612,1725192644870,-899.31,0.00026367,2]
[336823613,1725192644879,-2416.89,0.00026367,2]
[336823614,1725192644888,-500.0,0.00026367,2]
[336823615,1725192644898,-500.0,0.00026367,2]
[336823616,1725192644907,-500.0,0.00026367,2]
[336823617,1725192644917,-500.0,0.00026367,2]
[336823618,1725192644927,-500.0,0.00026367,2]
[336823619,1725192644936,-1489.35,0.00026367,2]
[336823620,1725192644945,-775.25,0.00026367,2]
[336823621,1725192644955,-823.45,0.00026367,2]
[336823622,1725192644964,-1562.51,0.00026367,2]
[336823623,1725192644974,-567.23,0.00026367,2]
[336823624,1725192644983,-1007.33,0.00026367,2]
[336823625,1725192644993,-640.88,0.00026367,2]
[336823626,1725192645003,-915.62,0.00026367,2]
[336823627,1725192645012,-500.0,0.00026368,2]
[336823628,1725192645021,-500.0,0.00026368,2]
[336823629,1725192645031,-500.0,0.00026368,2]
[336823630,1725192645041,-500.0,0.00026368,2]
[336823631,1725192645050,-500.0,0.00026368,2]
[336823632,1725192645060,-196.89521947,0.00026368,2]
[336823633,1725192645071,-500.0,0.00026368,2]
[336823634,1725192645081,-500.0,0.00026368,2]
[336823635,1725192645091,-500.0,0.00026368,2]
[336823636,1725192645102,-736.33,0.00026368,2]
[336823637,1725192645113,-500.0,0.00026368,2]
[336823638,1725192645126,-500.0,0.00026368,2]
[336823639,1725192645135,-500.0,0.00026368,2]
[336823640,1725192645146,-622.79,0.00026368,2]
[336823641,1725192645155,-484.99290101,0.00026368,2]
[336823642,1725192645165,-859.61,0.00026368,2]
[336823643,1725192645174,-831.63,0.00026368,2]
[336823644,1725192645183,-500.0,0.00026368,2]
[336823645,1725192645192,-681.9,0.00026368,2]
[336823646,1725192645202,-500.0,0.00026368,2]
[336823647,1725192645211,-500.0,0.00026368,2]
[336823648,1725192645220,-500.0,0.00026368,2]
[336823649,1725192645229,-500.0,0.00026368,2]
[336823650,1725192645237,-389.37457131,0.00026368,2]
[336823651,1725192645248,-1070.57,0.00026368,2]
[336823652,1725192645258,-500.0,0.00026368,2]
[336823653,1725192645267,-550.01,0.00026368,2]
[336823654,1725192645276,-500.0,0.00026368,2]
[336823655,1725192645285,-594.2,0.00026368,2]
[336823656,1725192645294,-664.69,0.00026368,2]
[336823657,1725192645303,-159.36194757,0.00026368,2]
[336823658,1725192645312,-500.0,0.00026368,2]
[336823659,1725192645321,-500.0,0.00026369,2]
[336823660,1725192645332,-500.0,0.00026369,2]
[336823661,1725192645340,-500.0,0.00026369,2]
[336823662,1725192645350,-789.57,0.00026369,2]
[336823663,1725192645359,-500.0,0.00026369,2]
[336823664,1725192645368,-500.0,0.00026369,2]
[336823665,1725192645377,-1000.0,0.00026421,2]
[336823666,1725192645387,-465.01433009,0.0002653,2]
[336823667,1725192645396,-8078.33957086,0.00026629,3]
[336823668,1725192645405,-605.35198673,0.0002663,2]
[336823669,1725192645414,-2132.33,0.00026638,2]
[336823670,1725192645423,-500.0,0.00026638,2]
[336823671,1725192645432,-500.0,0.00026638,2]
[336823672,1725192645441,-500.0,0.00026638,2]
[336823673,1725192645450,-500.0,0.00026638,2]
[336823674,1725192645459,-1593.92,0.00026638,2]
[336823675,1725192645469,-500.0,0.00026638,2]
[336823676,1725192645479,-1734.75,0.00026638,2]
[336823677,1725192645489,-1521.75,0.00026638,2]
[336823678,1725192645498,-782.07,0.00026638,2]
[336823679,1725192645507,-500.0,0.00026638,2]
[336823680,1725192645516,-540.23428271,0.00026638,2]
[336823681,1725192645525,-500.0,0.00026638,2]
[336823682,1725192645534,-500.0,0.00026638,2]
[336823683,1725192645543,-2082.74,0.00026639,2]
[336823684,1725192645552,-12586.71,0.00026639,2]
[336823685,1725192645562,-2887.41,0.00026639,2]
[336823686,1725192645572,-689.77,0.00026639,2]
[336823687,1725192645583,-3325.33,0.00026639,2]
[336823688,1725192645592,-1584.26,0.00026639,2]
[336823689,1725192645601,-500.0,0.00026639,2]
[336823690,1725192645611,-604.73,0.00026639,2]
[336823691,1725192645622,-1027.88,0.00026639,2]
[336823692,1725192645631,-1132.07,0.00026639,2]
[336823693,1725192645640,-509.52,0.00026639,2]
[336823694,1725192645651,-500.0,0.00026639,2]
[336823695,1725192645661,-500.0,0.00026639,2]
[336823696,1725192645670,-500.0,0.00026639,2]
[336823697,1725192645679,-1950.43,0.00026639,2]
[336823698,1725192645688,-500.0,0.00026639,2]
[336823699,1725192645698,-936.19,0.00026639,2]
[336823700,1725192645707,-500.0,0.00026639,2]
[336823701,1725192645715,-544.81,0.00026639,2]
[336823702,1725192645724,-500.0,0.00026639,2]
[336823703,1725192645733,-500.0,0.00026639,2]
[336823704,1725192645743,-946.89,0.00026639,2]
[336823705,1725192645752,-500.0,0.00026639,2]
[336823706,1725192645761,-500.0,0.0002664,2]
[336823707,1725192645770,-981.83,0.0002664,2]
[336823708,1725192645779,-500.0,0.0002664,2]
[336823709,1725192645788,-550.78,0.0002664,2]
[336823710,1725192645798,-500.0,0.0002664,2]
[336823711,1725192645807,-740.94,0.0002664,2]
[336823712,1725192645816,-500.0,0.0002664,2]
[336823713,1725192645825,-559.50297292,0.0002664,2]
[336823714,1725192645835,-885.34,0.0002664,2]
[336823715,1725192645843,-500.0,0.0002664,2]
[336823716,1725192645853,-500.0,0.0002664,2]
[336823717,1725192645862,-658.94,0.0002664,2]
[336823718,1725192645872,-500.0,0.0002664,2]
[336823719,1725192645881,-500.0,0.0002664,2]
[336823720,1725192645891,-570.52,0.0002664,2]
[336823721,1725192645900,-502.06,0.0002664,2]
[336823722,1725192645910,-500.0,0.0002664,2]
[336823723,1725192645919,-1340.91,0.0002664,2]
[336823724,1725192645932,-500.0,0.0002664,2]
[336823725,1725192645942,-500.0,0.0002664,2]
[336823726,1725192645953,-3161.41,0.0002664,2]
[336823727,1725192645962,-500.0,0.0002664,2]
[336823728,1725192645973,-500.0,0.0002664,2]
[336823730,1725192645983,-500.0,0.0002664,2]
[336823731,1725192645994,-526.73,0.0002664,2]
[336823732,1725192646005,-500.0,0.0002664,2]
[336823733,1725192646016,-1089.79,0.0002664,2]
[336823734,1725192646027,-500.0,0.0002664,2]
[336823735,1725192646037,-590.52,0.0002664,2]
[336823736,1725192646049,-500.0,0.0002664,2]
[336823737,1725192646059,-588.48,0.0002664,2]
[336823738,1725192646069,-1007.91,0.0002664,2]
[336823739,1725192646080,-1497.44,0.0002664,2]
[336823740,1725192646092,-500.0,0.0002664,2]
[336823741,1725192646102,-2694.9,0.0002664,2]
[336823742,1725192646113,-6376.52,0.0002664,2]
[336823743,1725192646124,-500.0,0.0002664,2]
[336823744,1725192646134,-574.38,0.0002664,2]
[336823745,1725192646145,-559.85,0.0002664,2]
[336823746,1725192646157,-1097.2,0.0002664,2]
[336823747,1725192646168,-500.0,0.0002664,2]
[336823748,1725192646178,-500.0,0.0002664,2]
[336823749,1725192646189,-541.79,0.0002664,2]
[336823750,1725192646201,-500.0,0.0002664,2]
[336823751,1725192646211,-500.0,0.0002664,2]
[336823752,1725192646223,-532.06,0.0002664,2]
[336823753,1725192646234,-582.76,0.0002664,2]
[336823754,1725192646244,-500.0,0.0002664,2]
[336823755,1725192646255,-557.59,0.0002664,2]
[336823756,1725192646265,-684.32,0.0002664,2]
[336823757,1725192646275,-500.0,0.00026641,2]
[336823758,1725192646285,-256.56931028,0.00026641,2]
[336823759,1725192646296,-500.0,0.00026641,2]
[336823760,1725192646305,-622.73,0.00026641,2]
[336823761,1725192646316,-742.03,0.00026641,2]
[336823762,1725192646328,-500.0,0.00026641,2]
[336823763,1725192646339,-500.0,0.00026641,2]
[336823764,1725192646349,-500.0,0.00026641,2]
[336823765,1725192646360,-500.0,0.00026641,2]
[336823766,1725192646370,-899.31,0.00026641,2]
[336823767,1725192646381,-2416.89,0.00026641,2]
[336823768,1725192646391,-500.0,0.00026641,2]
[336823769,1725192646404,-500.0,0.00026641,2]
[336823770,1725192646415,-500.0,0.00026641,2]
[336823771,1725192646426,-500.0,0.00026641,2]
[336823772,1725192646436,-500.0,0.00026641,2]
[336823773,1725192646445,-1489.35,0.00026641,2]
[336823774,1725192646456,-775.25,0.00026641,2]
[336823775,1725192646466,-823.45,0.00026641,2]
[336823776,1725192646475,-1562.51,0.00026641,2]
[336823777,1725192646485,-567.23,0.00026641,2]
[336823778,1725192646494,-1007.33,0.00026641,2]
[336823779,1725192646503,-640.88,0.00026641,2]
[336823780,1725192646512,-915.62,0.00026641,2]
[336823781,1725192646521,-500.0,0.00026642,2]
[336823782,1725192646530,-500.0,0.00026642,2]
[336823783,1725192646540,-500.0,0.00026642,2]
[336823784,1725192646549,-500.0,0.00026642,2]
[336823785,1725192646558,-500.0,0.00026642,2]
[336823786,1725192646567,-500.0,0.00026642,2]
[336823787,1725192646580,-500.0,0.00026642,2]
[336823788,1725192646590,-500.0,0.00026642,2]
[336823789,1725192646599,-736.33,0.00026642,2]
[336823790,1725192646611,-500.0,0.00026642,2]
[336823791,1725192646620,-500.0,0.00026642,2]
[336823792,1725192646631,-500.0,0.00026642,2]
[336823793,1725192646647,-622.79,0.00026642,2]
[336823794,1725192646657,-859.61,0.00026642,2]
[336823795,1725192646667,-831.63,0.00026642,2]
[336823796,1725192646676,-500.0,0.00026642,2]
[336823797,1725192646686,-681.9,0.00026642,2]
[336823798,1725192646695,-500.0,0.00026642,2]
[336823799,1725192646704,-500.0,0.00026642,2]
[336823800,1725192646714,-500.0,0.00026642,2]
[336823801,1725192646723,-500.0,0.00026642,2]
[336823802,1725192646732,-1070.57,0.00026642,2]
[336823803,1725192646742,-500.0,0.00026642,2]
[336823804,1725192646752,-550.01,0.00026642,2]
[336823805,1725192646761,-500.0,0.00026642,2]
[336823806,1725192646771,-594.2,0.00026642,2]
[336823807,1725192646781,-664.69,0.00026642,2]
[336823808,1725192646790,-500.0,0.00026642,2]
[336823809,1725192646799,-500.0,0.00026643,2]
[336823810,1725192646808,-500.0,0.00026643,2]
[336823811,1725192646817,-500.0,0.00026643,2]
[336823812,1725192646828,-789.57,0.00026643,2]
[336823813,1725192646837,-535.43495375,0.00026643,2]
[336823814,1725192646846,-500.0,0.00026643,2]
[336823815,1725192646855,-1217.20077478,0.00026889,2]
[336823816,1725192646864,-2132.33,0.00026912,2]
[336823817,1725192646875,-500.0,0.00026912,2]
[336823818,1725192646885,-500.0,0.00026912,2]
[336823819,1725192646896,-500.0,0.00026912,2]
[336823820,1725192646908,-500.0,0.00026912,2]
[336823821,1725192646919,-1593.92,0.00026912,2]
[336823822,1725192646929,-500.0,0.00026912,2]
[336823823,1725192646940,-1734.75,0.00026912,2]
[336823824,1725192646951,-1521.75,0.00026912,2]
[336823825,1725192646962,-782.07,0.00026912,2]
[336823826,1725192646972,-500.0,0.00026912,2]
[336823827,1725192646981,-2082.74,0.00026913,2]
[336823828,1725192646991,-12586.71,0.00026913,2]
[336823829,1725192647001,-2887.41,0.00026913,2]
[336823830,1725192647010,-689.77,0.00026913,2]
[336823831,1725192647020,-3325.33,0.00026913,2]
[336823832,1725192647031,-1584.26,0.00026913,2]
[336823833,1725192647041,-500.0,0.00026913,2]
[336823834,1725192647050,-604.73,0.00026913,2]
[336823835,1725192647060,-1027.88,0.00026913,2]
[336823836,1725192647070,-1132.07,0.00026913,2]
[336823837,1725192647080,-509.52,0.00026913,2]
[336823838,1725192647090,-500.0,0.00026913,2]
[336823839,1725192647099,-500.0,0.00026913,2]
[336823840,1725192647109,-500.0,0.00026913,2]
[336823841,1725192647120,-1950.43,0.00026913,2]
[336823842,1725192647132,-500.0,0.00026913,2]
[336823843,1725192647143,-936.19,0.00026913,2]
[336823844,1725192647155,-500.0,0.00026913,2]
[336823845,1725192647168,-544.81,0.00026913,2]
[336823846,1725192647179,-500.0,0.00026913,2]
[336823847,1725192647188,-439.4849815,0.00026913,2]
[336823848,1725192647198,-946.89,0.00026913,2]
[336823849,1725192647207,-500.0,0.00026913,2]
[336823850,1725192647217,-500.0,0.00026914,2]